bitfinex-derivatives/quotes_SOLF0:USTF0_20240906
["timestamp","ask_amount","ask_price","bid_price","bid_amount"]
[1725657700036,4.0605,123.21,123.17,21.85]
[1725657700831,4.0605,123.21,123.17,25.9116]
[1725657701034,4.0601,123.22,123.17,25.9116]
[1725657701430,21.85,123.25,123.18,4.061]
[1725657702030,4.0599,123.23,123.18,4.061]
[1725657702840,4.0599,123.23,123.18,8.02400949]
[1725657703236,4.0599,123.23,123.19,4.0609]
[1725657704034,4.0594,123.24,123.2,4.0606]
[1725657704238,4.0594,123.24,123.18,25.81300949]
[1725657704536,4.0594,123.24,123.18,21.85]
[1725657704741,4.0591,123.25,123.2,4.0604]
[1725657705642,4.0591,123.25,123.21,4.0603]
[1725657707747,2.5901,123.26,123.22,8.73]
[1725657708239,2.5901,123.26,123.23,4.0596]
[1725657714349,2.5901,123.26,123.2,21.82]
[1725657715053,2.5901,123.26,123.21,4.13343537]
[1725657715550,6.6488,123.26,123.22,4.0599]
[1725657716052,4.05087899,123.29,123.22,21.82]
[1725657716352,26.7126,123.31,123.22,21.82]
[1725657716549,4.0583,123.28,123.23,4.0594]
[1725657717252,4.0583,123.28,123.24,4.0593]
[1725657717455,4.0574,123.3,123.22,21.82]
[1725657717645,4.8926,123.31,123.25,21.82]
[1725657717952,4.8926,123.31,123.27,4.0582]
[1725657718552,2.3812,123.31,123.26,3.97633763]
[1725657718855,2.3812,123.31,123.25,21.82]
[1725657719351,2.3812,123.31,123.28,4.0578]
[1725657722549,4.0574,123.3,123.27,4.0582]
[1725657722757,2.3812,123.31,123.27,4.0582]
[1725657723153,6.4383,123.31,123.27,4.0582]
[1725657723457,6.4383,123.31,123.28,4.0579]
[1725657725059,2.3812,123.31,123.25,25.95953188]
[1725657725558,2.3812,123.31,123.26,21.82]
[1725657726258,6.4382,123.31,123.26,21.82]
[1725657726656,6.4382,123.31,123.27,4.0582]
[1725657729158,2.3812,123.31,123.15,8.1245]
[1725657729359,24.2012,123.31,123.16,1.8318]
[1725657729559,24.2012,123.31,123.23,21.82]
[1725657729761,4.0579,123.29,123.24,4.0591]
[1725657730058,24.2012,123.31,123.24,12.7791]
[1725657730059,8.72,123.3,123.24,12.7791]
[1725657730255,2.3812,123.31,123.24,8.72]
[1725657730455,8.72,123.29,123.24,8.72]
[1725657731153,4.0582,123.28,123.24,8.72]
[1725657731355,8.72,123.29,123.16,5.85197365]
[1725657731551,8.72,123.28,123.22,8.72]
[1725657731752,11.2967,123.27,123.2,8.72]
[1725657731959,11.2967,123.27,123.2,12.7804]
[1725657732262,2.5767,123.27,123.22,8.72]
[1725657732556,2.5767,123.27,123.22,12.7799]
[1725657732763,6.6352,123.27,123.22,12.7799]
[1725657733063,6.6352,123.27,123.22,8.72]
[1725657733265,6.6352,123.27,123.23,4.0596]
[1725657733661,6.6352,123.27,123.23,12.7796]
[1725657734557,4.059,123.26,123.23,8.72]
[1725657735353,6.6353,123.27,123.23,8.72]
[1725657735865,6.6353,123.27,123.23,12.7794]
[1725657736069,2.5767,123.27,123.23,8.72]
[1725657736365,2.5767,123.27,123.22,8.72]
[1725657737267,6.635,123.27,123.22,8.72]
[1725657738366,6.635,123.27,123.23,4.0595]
[1725657739666,4.0587,123.26,123.22,12.7799]
[1725657739870,4.0587,123.26,123.21,8.72]
[1725657741562,4.059,123.25,123.16,5.85197365]
[1725657741759,4.059,123.25,123.21,8.72]
[1725657742564,2.5767,123.27,123.02,78.45315628]
[1725657742773,2.5767,123.27,123.16,8.72]
[1725657742962,8.72,123.23,123.16,8.72]
[1725657743270,4.0607,123.2,123.16,8.72]
[1725657743460,8.09161661,123.2,123.16,8.72]
[1725657743870,4.03091661,123.2,123.1,2.0813]
[1725657744064,8.72,123.21,123.14,8.72]
[1725657744567,4.0612,123.19,123.14,8.72]
[1725657744768,4.01019941,123.18,123.15,2.15289362]
[1725657745165,4.10241125,123.27,123.17,8.72]
[1725657745366,8.72,123.25,123.18,8.72]
[1725657745568,12.85409637,123.25,123.18,8.72]
[1725657745875,4.0597,123.23,123.18,8.72]
[1725657746069,12.85409637,123.25,123.18,8.72]
[1725657746263,4.13409637,123.25,123.16,4.09428686]
[1725657746468,4.0593,123.24,123.19,8.72]
[1725657747064,4.13504262,123.23,123.19,8.72]
[1725657748076,4.13504262,123.23,123.18,4.0611]
[1725657748476,8.19464262,123.23,123.18,4.0611]
[1725657748771,4.0596,123.23,123.18,4.0611]
[1725657749072,11.6796,123.24,123.19,4.0609]
[1725657749481,7.6201,123.24,123.19,4.0609]
[1725657749671,4.09823315,123.23,123.19,4.0609]
[1725657750169,8.15793315,123.23,123.18,4.0613]
[1725657750373,4.0597,123.23,123.18,4.0613]
[1725657751576,3.99712743,123.22,123.18,4.0613]
[1725657752179,3.99712743,123.22,123.18,6.21412962]
[1725657752376,11.6796,123.24,123.19,4.0609]
[1725657752880,4.03172023,123.23,123.19,4.0609]
[1725657754181,7.6201,123.24,123.17,25.87732221]
[1725657754680,7.6201,123.24,123.2,4.0606]
[1725657755879,4.0587,123.26,123.19,21.83]
[1725657756182,4.0587,123.26,123.21,21.83]
[1725657756183,4.10066943,123.26,123.21,21.83]
[1725657756377,24.4926,123.3,123.22,4.0597]
[1725657756977,4.0585,123.27,123.22,4.0597]
[1725657757175,4.10026339,123.26,123.22,4.0597]
[1725657759185,8.15906339,123.26,123.21,25.8902]
[1725657760684,4.10026339,123.26,123.22,4.0597]
[1725657760985,24.4926,123.3,123.21,21.83]
[1725657762284,4.0583,123.27,123.23,4.0595]
[1725657762480,8.11501738,123.27,123.23,4.0595]
[1725657763882,2.6626,123.3,123.22,21.83]
[1725657764081,2.6626,123.3,123.23,2.15111154]
[1725657764288,2.6626,123.3,123.22,21.83]
[1725657764585,2.6626,123.3,123.24,4.0592]
[1725657764786,2.6626,123.3,123.22,21.83]
[1725657764988,6.7201,123.3,123.26,4.0585]
[1725657765690,2.6626,123.3,123.26,4.0585]
[1725657766090,5.1398,123.31,123.27,4.0581]
[1725657766288,5.1398,123.31,123.25,6.24391979]
[1725657766289,2.5879,123.31,123.25,6.24391979]
[1725657766487,113.82801064,123.32,123.25,6.24391979]
[1725657766691,113.82801064,123.32,123.25,8.70391979]
[1725657767289,113.82801064,123.32,123.28,4.0578]
[1725657767695,113.82801064,123.32,123.26,23.98085133]
[1725657767897,113.82801064,123.32,123.26,21.83]
[1725657769294,113.82801064,123.32,123.28,4.0578]
[1725657770195,113.82801064,123.32,123.29,4.0576]
[1725657772294,113.82801064,123.32,123.28,4.0578]
[1725657772796,113.82801064,123.32,123.29,4.0576]
[1725657774195,122.55801064,123.32,123.28,4.0579]
[1725657774597,8.73,123.33,123.26,8.73]
[1725657775099,12.7864,123.33,123.26,8.73]
[1725657775500,12.7864,123.33,123.28,4.0578]
[1725657776298,11.6711,123.34,123.29,4.0574]
[1725657776497,20.4011,123.34,123.28,8.73]
[1725657776898,20.4011,123.34,123.29,4.0575]
[1725657777197,12.7864,123.33,123.29,4.0575]
[1725657777501,12.7864,123.33,123.28,4.0578]
[1725657777502,8.73,123.33,123.28,4.0578]
[1725657777802,8.73,123.33,123.29,4.0576]
[1725657778701,12.7866,123.33,123.26,8.73]
[1725657780400,4.0566,123.33,123.29,4.0576]
[1725657780598,12.7866,123.33,123.29,4.0576]
[1725657781200,227.0,123.43,123.33,4.0561]
[1725657781403,4.8098,123.41,123.33,4.0561]
[1725657781703,8.73,123.37,123.33,4.0561]
[1725657782902,4.0549,123.38,123.33,4.0561]
[1725657783100,12.7852,123.37,123.32,4.0564]
[1725657783301,8.73,123.35,123.3,8.73]
[1725657784508,8.73,123.35,123.32,4.0565]
[1725657786505,8.73,123.35,123.31,4.0569]
[1725657787408,8.02772756,123.36,123.31,4.0569]
[1725657787607,8.73,123.35,123.31,4.0569]
[1725657789406,8.02772756,123.36,123.31,4.0569]
[1725657789611,16.75772756,123.36,123.31,4.0569]
[1725657789817,12.70222756,123.36,123.32,4.0566]
[1725657790502,16.75762756,123.36,123.31,4.0569]
[1725657790712,16.75762756,123.36,123.31,12.7869]
[1725657793215,16.75762756,123.36,123.32,4.0566]
[1725657794717,12.70222756,123.36,123.31,4.0569]
[1725657794918,12.70222756,123.36,123.31,12.7869]
[1725657795214,16.75782756,123.36,123.31,12.7869]
[1725657797419,8.02782756,123.36,123.32,4.0566]
[1725657798421,8.73,123.37,123.32,4.0566]
[1725657798422,12.7851,123.37,123.32,4.0566]
[1725657799214,12.7851,123.37,123.32,12.7866]
[1725657800819,4.0542,123.4,123.36,4.0551]
[1725657801022,4.8098,123.41,123.38,8.73]
[1725657801023,8.96625702,123.41,123.38,8.73]
[1725657801318,4.8098,123.41,123.39,8.73]
[1725657801510,2.6362,123.42,123.39,8.73]
[1725657801912,2.6362,123.42,123.4,4.0538]
[1725657802217,1.9945,123.44,123.4,4.0538]
[1725657802617,4.14428822,123.43,123.4,4.0538]
[1725657803521,4.0863,123.44,123.35,4.05221096]
[1725657803821,8.07604444,123.44,123.37,8.73]
[1725657804020,4.0536,123.42,123.38,8.73]
[1725657804219,16.80604444,123.44,123.38,8.73]
[1725657804615,4.0536,123.42,123.38,12.7846]
[1725657807018,4.0536,123.42,123.38,8.73]
[1725657807423,16.80604444,123.44,123.38,8.73]
[1725657807731,4.0536,123.42,123.37,12.7848]
[1725657808023,12.7836,123.42,123.37,4.0548]
[1725657809523,4.0536,123.42,123.37,4.0548]
[1725657814628,4.0536,123.42,123.38,4.0545]
[1725657816128,12.7832,123.43,123.38,4.0545]
[1725657816325,8.73,123.43,123.38,4.0545]
[1725657817031,8.07604444,123.44,123.37,8.73]
[1725657817230,8.07604444,123.44,123.32,2.0283]
[1725657817534,8.07604444,123.44,123.38,8.73]
[1725657817833,8.07604444,123.44,123.38,12.71213594]
[1725657818136,12.12894444,123.44,123.39,4.0542]
[1725657818938,4.0531,123.43,123.39,4.0542]
[1725657820035,20.85894444,123.44,123.39,4.0542]
[1725657820232,12.7829,123.44,123.4,4.054]
[1725657820537,235.1015,123.51,123.41,4.11469813]
[1725657820538,4.0524,123.46,123.41,4.11469813]
[1725657820738,4.0524,123.46,123.4,8.73]
[1725657820931,4.0526,123.45,123.4,12.739297]
[1725657821132,4.0526,123.45,123.4,4.009297]
[1725657821332,2.0182,123.45,123.41,4.0535]
[1725657821536,6.0707,123.45,123.39,8.73]
[1725657821933,6.0707,123.45,123.4,4.0539]
[1725657823136,14.8007,123.45,123.4,4.0539]
[1725657823539,4.0528,123.44,123.4,4.0539]
[1725657823738,8.73,123.44,123.38,4.0545]
[1725657823931,4.0533,123.43,123.38,4.0545]
[1725657824241,8.1324759,123.43,123.38,4.0545]
[1725657824627,16.8624759,123.43,123.38,4.0545]
[1725657825834,16.8624759,123.43,123.39,4.0543]
[1725657826340,12.8091759,123.43,123.39,4.0543]
[1725657827032,12.8091759,123.43,123.37,3.98796904]
[1725657827237,12.8091759,123.43,123.37,8.73]
[1725657828338,8.73,123.41,123.34,2.0992]
[1725657828533,8.73,123.39,123.34,6.06730622]
[1725657828841,8.73,123.4,123.35,4.0557]
[1725657829441,12.7841,123.4,123.35,8.73]
[1725657830440,4.0541,123.4,123.35,8.73]
[1725657830743,4.0544,123.39,123.35,8.73]
[1725657830932,8.15887053,123.44,123.35,12.7856]
[1725657831133,4.0541,123.4,123.35,12.7856]
[1725657833445,4.0541,123.4,123.35,8.73]
[1725657834737,4.0541,123.4,123.35,12.7857]
[1725657836942,4.0539,123.41,123.36,4.0552]
[1725657837245,8.73,123.42,123.35,8.73]
[1725657837437,4.0541,123.4,123.35,12.7855]
[1725657837832,4.0541,123.4,123.35,4.0555]
[1725657838043,4.0541,123.4,123.35,12.7855]
[1725657838841,4.0544,123.39,123.35,8.73]
[1725657839040,8.73,123.41,123.35,8.73]
[1725657839641,4.0542,123.4,123.35,12.7857]
[1725657840445,8.73,123.4,123.34,6.18205421]
[1725657840742,8.73,123.37,123.32,2.0283]
[1725657840947,8.73,123.37,123.32,6.15866695]
[1725657841149,8.73,123.37,123.32,4.13036695]
[1725657841741,8.73,123.37,123.31,8.73]
[1725657842449,4.0554,123.36,123.31,16.89121785]
[1725657842651,8.73,123.37,123.31,12.83441785]
[1725657842845,12.7853,123.37,123.31,16.89111785]
[1725657843048,4.15057064,123.42,123.31,16.89111785]
[1725657843250,8.73,123.36,123.31,16.89111785]
[1725657843950,8.73,123.36,123.31,8.16111785]
[1725657844251,12.7854,123.36,123.31,8.16111785]
[1725657844457,8.73,123.36,123.31,8.16111785]
[1725657845250,8.73,123.35,123.29,8.73]
[1725657845550,8.73,123.35,123.29,12.74254438]
[1725657845852,8.73,123.36,123.31,4.0569]
[1725657846047,12.7854,123.36,123.3,10.87731709]
[1725657846345,8.73,123.36,123.3,8.73]
[1725657847450,12.7854,123.36,123.31,4.057]
[1725657848053,12.7854,123.36,123.3,12.7872]
[1725657849053,4.0558,123.35,123.29,8.07014438]
[1725657849249,12.7858,123.35,123.3,2.14741299]
[1725657849853,8.73,123.35,123.3,2.14741299]
[1725657850047,8.73,123.34,123.28,6.20531299]
[1725657850248,8.73,123.34,123.28,2.14741299]
[1725657850452,5.9245,123.37,123.28,2.14741299]
[1725657850453,8.73,123.32,123.28,2.14741299]
[1725657850749,30.2945,123.37,123.26,2.14899156]
[1725657851051,8.73,123.27,123.19,2.14899156]
[1725657851352,8.73,123.27,123.2,10.87899156]
[1725657851556,8.73,123.27,123.21,6.20909156]
[1725657851753,12.82682604,123.27,123.2,8.73]
[1725657853052,12.82682604,123.27,123.22,4.0599]
[1725657853554,12.82682604,123.27,123.2,8.73]
[1725657853756,12.82682604,123.27,123.22,4.0599]
[1725657855259,8.73,123.25,123.2,4.0606]
[1725657855459,8.73,123.24,123.2,4.0606]
[1725657856056,4.03065994,123.25,123.21,4.0602]
[1725657856460,12.76065994,123.25,123.21,4.0602]
[1725657857063,12.76065994,123.25,123.2,4.0604]
[1725657857257,14.69385994,123.25,123.2,4.0604]
[1725657857458,14.69385994,123.25,123.18,98.48862566]
[1725657857661,14.69385994,123.25,123.2,4.0606]
[1725657857966,8.73,123.23,123.2,4.0606]
[1725657858268,5.96385994,123.25,123.19,4.0609]
[1725657858465,8.73,123.22,123.19,4.0609]
[1725657859263,8.73,123.2,123.14,2.0042]
[1725657859462,8.73,123.2,123.09,2.913]
[1725657859658,8.73,123.2,123.16,2.15196707]
[1725657859857,8.73,123.2,123.16,6.21386707]
[1725657860462,8.73,123.2,123.16,4.0619]
[1725657860663,12.7909,123.2,123.14,12.7925]
[1725657860860,10.6753,123.2,123.14,8.73]
[1725657861065,8.73,123.19,123.09,1.907]
[1725657861264,8.73,123.17,123.13,4.0627]
[1725657861868,12.88636656,123.17,123.13,4.0627]
[1725657862163,26.01636656,123.17,123.11,4.0633]
[1725657862371,21.86,123.16,123.11,4.0633]
[1725657862871,1.9453,123.15,123.1,4.0638]
[1725657863067,21.86,123.14,122.97,253.1621196]
[1725657863366,2.015,123.13,123.03,2.0269]
[1725657863666,2.015,123.13,123.05,21.86]
[1725657863868,23.875,123.13,123.06,4.065]
[1725657864069,1.966,123.12,123.05,21.86]
[1725657865357,1.966,123.12,123.07,4.0648]
[1725657865565,1.966,123.12,123.05,21.86]
[1725657865766,1.966,123.12,123.03,2.0269]
[1725657865958,6.0293,123.12,123.07,4.0649]
[1725657867073,1.966,123.12,123.07,4.0649]
[1725657867373,1.966,123.12,123.04,21.86]
[1725657867769,6.0294,123.12,123.06,4.0651]
[1725657868269,4.065,123.07,123.0,4.0669]
[1725657868568,21.86,123.06,122.98,21.86]
[1725657868774,30.33474898,123.12,122.97,4.0681]
[1725657868775,25.9265,123.03,122.97,4.0681]
[1725657868976,25.9265,123.03,122.92,21.86]
[1725657868977,21.86,123.01,122.92,21.86]
[1725657869868,21.86,123.01,122.87,4.11903655]
[1725657869869,21.86,123.01,122.91,21.86]
[1725657870270,4.08574945,123.03,122.97,4.068]
[1725657870474,27.622,123.05,122.92,2.8307]
[1725657870774,21.86,123.03,122.96,21.86]
[1725657870977,25.9265,123.03,122.96,4.0683]
[1725657871163,9.82050841,123.05,122.96,21.86]
[1725657871365,31.68050841,123.05,122.96,21.86]
[1725657871576,31.68050841,123.05,122.99,4.0675]
[1725657871771,21.86,123.03,122.93,1.9204]
[1725657871968,21.86,123.03,122.94,21.86]
[1725657872274,25.9265,123.03,122.96,4.0683]
[1725657872866,25.9265,123.03,122.97,4.0682]
[1725657873470,4.0666,123.02,122.96,4.0685]
[1725657873679,21.86,123.01,122.96,4.0685]
[1725657874580,21.86,123.03,122.94,21.86]
[1725657875266,26.02720087,123.03,122.97,4.068]
[1725657875471,21.86,123.03,122.94,25.98774953]
[1725657875668,4.03013795,123.02,122.94,25.98774953]
[1725657875869,21.86,123.01,122.94,4.12774953]
[1725657876271,3.99800747,123.0,122.94,8.19694953]
[1725657876575,21.86,123.01,122.94,4.12774953]
[1725657876975,21.86,123.01,122.95,4.0687]
[1725657877169,25.8750895,123.01,122.93,1.9204]
[1725657877374,25.8750895,123.01,122.93,5.96599312]
[1725657877574,25.8750895,123.01,122.93,1.9204]
[1725657877979,21.86,123.03,122.95,21.86]
[1725657878177,21.86,123.02,122.93,1.9204]
[1725657878376,4.0671,123.01,122.95,4.0686]
[1725657878781,21.86,123.02,122.95,4.0686]
[1725657879289,21.86,123.0,122.96,4.0685]
[1725657879483,4.09343523,123.03,122.94,4.11377225]
[1725657879783,25.9265,123.03,122.97,4.0679]
[1725657879993,3.97263334,123.02,122.97,4.0679]
[1725657880483,3.97263334,123.02,122.97,4.0682]
[1725657880682,21.86,123.03,122.95,4.06903081]
[1725657880884,4.02632307,123.02,122.95,21.86]
[1725657881178,4.02632307,123.02,122.97,4.0679]
[1725657881383,21.86,123.03,122.96,3.97751422]
[1725657881584,25.836294,123.03,122.98,4.0679]
[1725657881780,29.902794,123.03,122.95,21.86]
[1725657882086,3.976294,123.03,122.99,4.0675]
[1725657882282,27.622,123.05,122.96,21.86]
[1725657882283,4.0659,123.04,122.96,21.86]
[1725657882492,3.99825798,123.03,122.95,25.89811854]
[1725657882691,3.99825798,123.03,122.98,4.0676]
[1725657883390,31.6876,123.05,122.99,4.0673]
[1725657883797,27.622,123.05,122.97,4.07187799]
[1725657883992,3.8946,123.05,122.98,21.86]
[1725657884196,21.86,123.09,123.0,21.86]
[1725657884693,21.86,123.08,122.99,21.86]
[1725657884885,21.86,123.06,122.98,1.8763]
[1725657885091,6.0044,123.1,123.02,21.86]
[1725657885286,10.00883925,123.1,123.05,4.0653]
[1725657885491,6.0044,123.1,123.05,4.0653]
[1725657885690,6.0044,123.1,123.04,25.96078971]
[1725657885893,21.86,123.14,123.04,21.86]
[1725657886097,21.86,123.14,123.04,25.99697196]
[1725657886293,21.86,123.14,123.06,21.86]
[1725657886492,4.12436915,123.13,123.08,4.0645]
[1725657886697,4.12436915,123.13,123.08,8.22545794]
[1725657887099,4.12436915,123.13,123.08,4.0645]
[1725657889006,4.12436915,123.13,123.09,4.0642]
[1725657889800,4.0624,123.15,123.09,4.0642]
[1725657890004,4.14585743,123.14,123.09,4.0642]
[1725657890400,31.7265,123.16,123.09,4.0642]
[1725657890798,27.6643,123.16,123.09,4.0642]
[1725657890994,4.02353797,123.15,123.09,4.0642]
[1725657894995,4.02353797,123.15,123.1,4.0638]
[1725657895604,4.02353797,123.15,123.11,4.0636]
[1725657897307,27.6643,123.16,123.12,4.0632]
[1725657897803,2.0383,123.16,123.1,25.84615129]
[1725657898007,2.0383,123.16,123.1,21.86]
[1725657898212,21.86,123.18,123.1,21.86]
[1725657898600,21.86,123.18,123.1,25.90807391]
[1725657899000,21.86,123.18,123.13,4.0626]
[1725657899207,21.86,123.18,123.1,25.90807391]
[1725657900107,21.86,123.18,123.13,4.0627]
[1725657901008,1.8489,123.19,123.14,4.0626]
[1725657901208,21.86,123.18,123.1,25.90807391]
[1725657901409,21.86,123.18,123.1,4.04807391]
[1725657901605,1.8489,123.19,123.09,2.014]
[1725657901811,21.86,123.16,123.1,3.9918447]
[1725657902006,25.91561997,123.16,123.1,3.9918447]
[1725657902511,25.91561997,123.16,123.11,4.0635]
[1725657903611,29.97761997,123.16,123.11,4.0635]
[1725657904315,29.97761997,123.16,123.1,4.0638]
[1725657905409,4.0623,123.15,123.1,4.0638]
[1725657905717,6.0373,123.15,123.1,4.0638]
[1725657906212,7.9141,123.15,123.09,4.0641]
[1725657906714,21.86,123.14,123.09,4.0641]
[1725657907304,21.86,123.14,123.08,4.0644]
[1725657907816,25.9228,123.14,123.08,4.0644]
[1725657909410,21.86,123.11,123.03,3.8527]
[1725657909610,21.86,123.11,123.03,1.9152]
[1725657909817,25.9243,123.09,123.04,4.0657]
[1725657910010,25.99251766,123.09,123.04,4.0657]
[1725657910822,21.86,123.11,123.04,4.11597586]
[1725657911020,21.86,123.11,123.03,21.86]
[1725657911316,21.86,123.11,123.06,4.0651]
[1725657911517,25.9236,123.11,123.06,4.0651]
[1725657912020,25.9236,123.11,123.05,4.0655]
[1725657912822,21.86,123.11,123.04,4.00134963]
[1725657913724,21.86,123.11,123.03,21.86]
[1725657914017,1.9731,123.13,123.02,118.01169734]
[1725657914216,1.9731,123.13,123.08,4.0643]
[1725657914417,1.9731,123.13,123.07,4.12451186]
[1725657914617,1.9731,123.13,123.05,21.86]
[1725657915019,25.7118,123.15,123.07,21.86]
[1725657915325,25.7118,123.15,123.1,4.0637]
[1725657916114,29.7743,123.15,123.1,4.0637]
[1725657917126,25.7118,123.15,123.07,21.86]
[1725657917314,21.86,123.14,123.06,23.7268]
[1725657917621,21.86,123.14,123.06,21.86]
[1725657917811,3.8518,123.15,123.05,4.10459453]
[1725657917812,24.96,123.13,123.05,4.10459453]
[1725657918015,24.96,123.13,123.04,24.96]
[1725657918215,4.0633,123.12,123.04,24.96]
[1725657918717,2.0007,123.12,123.04,24.96]
[1725657918917,24.96,123.11,123.03,1.9583]
[1725657919319,2.0007,123.12,123.07,24.96]
[1725657919526,2.0007,123.12,123.08,3.96468751]
[1725657919724,3.8518,123.15,123.11,4.0635]
[1725657920027,7.94896887,123.15,123.07,29.09171155]
[1725657920324,3.8518,123.15,123.07,29.09171155]
[1725657920725,7.92417876,123.15,123.07,29.09171155]
[1725657920925,3.8518,123.15,123.1,4.0636]
[1725657921522,28.8118,123.15,123.03,1.9583]
[1725657921717,24.96,123.13,123.04,24.96]
[1725657921923,24.96,123.13,123.04,28.9596432]
[1725657922324,3.8518,123.15,123.08,24.96]
[1725657922522,3.8518,123.15,123.1,4.0637]
[1725657923632,3.8518,123.15,123.09,4.04271566]
[1725657923633,32.8743,123.15,123.09,8.10691566]
[1725657924523,7.9143,123.15,123.09,8.10691566]
[1725657924724,3.8518,123.15,123.11,4.0635]
[1725657925230,2.0007,123.18,123.1,24.96]
[1725657925429,6.0622,123.18,123.12,4.063]
[1725657925927,6.0622,123.18,123.12,4.0631]
[1725657926130,6.0622,123.18,123.1,26.8527]
[1725657926723,6.0622,123.18,123.12,4.0631]
[1725657927031,6.0622,123.18,123.1,26.8527]
[1725657927228,6.0622,123.18,123.12,4.0631]
[1725657927524,6.0622,123.18,123.1,26.8527]
[1725657927931,6.0622,123.18,123.13,4.0628]
[1725657929330,6.0622,123.18,123.14,4.0626]
[1725657930429,2.0007,123.18,123.13,4.0628]
[1725657930634,24.96,123.17,123.09,5.86661566]
[1725657930934,4.0623,123.15,123.09,4.04271566]
[1725657931227,3.7665,123.16,123.07,27.613]
[1725657931434,3.7665,123.16,123.09,24.96]
[1725657931627,7.8286,123.16,123.09,24.96]
[1725657931828,7.8286,123.16,123.1,4.0158112]
[1725657932030,7.8286,123.16,123.09,24.96]
[1725657932227,7.8286,123.16,123.11,4.0634]
[1725657932632,7.8286,123.16,123.1,3.97437758]
[1725657932835,4.0623,123.15,123.09,29.0241]
[1725657933131,3.7665,123.16,123.09,29.0241]
[1725657933335,3.7665,123.16,123.09,29.05040607]
[1725657934125,24.96,123.15,123.09,4.09040607]
[1725657934327,24.96,123.12,123.06,4.1082823]
[1725657934533,4.0649,123.07,123.04,4.10137557]
[1725657934727,4.0649,123.07,123.02,142.97169734]
[1725657934932,7.84811324,123.11,123.02,142.97169734]
[1725657935133,4.0647,123.08,123.02,147.03799734]
[1725657935335,7.84811324,123.11,123.02,142.97169734]
[1725657935336,24.96,123.1,123.02,142.97169734]
[1725657935634,7.84811324,123.11,123.02,142.97169734]
[1725657935831,4.0645,123.09,123.03,4.0662]
[1725657936028,4.0645,123.09,123.04,4.12159495]
[1725657937429,7.84811324,123.11,123.03,4.0662]
[1725657937636,24.96,123.1,123.03,4.0662]
[1725657938333,4.0645,123.09,123.03,4.0662]
[1725657938633,4.0645,123.09,123.04,33.12747601]
[1725657938934,7.84811324,123.11,123.04,4.10167601]
[1725657939136,7.84811324,123.11,123.02,142.97169734]
[1725657939332,4.0651,123.07,123.01,3.6464]
[1725657939536,24.96,123.09,123.01,3.6464]
[1725657939935,4.0647,123.08,123.02,4.0665]
[1725657940539,4.0647,123.08,123.01,28.6064]
[1725657941042,4.0643,123.09,123.03,4.066]
[1725657941237,4.0643,123.09,123.04,4.09321321]
[1725657941630,4.0643,123.09,123.03,4.066]
[1725657942033,26.8748,123.1,123.01,28.6064]
[1725657942238,26.8748,123.1,123.04,4.00216259]
[1725657942632,4.0645,123.09,123.04,4.0658]
[1725657942843,4.0645,123.09,123.04,8.2077204]
[1725657943237,24.96,123.06,122.98,0.7512]
[1725657943437,24.96,123.04,122.97,1.8165]
[1725657943837,4.0665,123.03,122.97,5.8845]
[1725657944039,4.0665,123.03,122.97,4.068]
[1725657944742,4.0665,123.03,122.98,4.0679]
[1725657944934,4.0665,123.03,122.94,28.6005]
[1725657944935,4.02606533,123.02,122.94,28.6005]
[1725657945337,24.96,123.03,122.96,4.0683]